bitfinex-derivatives/quotes_ETHF0:USTF0_20250505
["timestamp","ask_amount","ask_price","bid_price","bid_amount"]
[1746425114797,2.77784,1816.9,1816.7,2.76991]
[1746425115196,1.10078,1816.8,1816.6,4.30868]
[1746425115503,3.2078,1817.1,1816.6,3.2078]
[1746425115705,2.7976,1817.0,1816.8,1.10076]
[1746425116103,1.10084,1816.7,1816.6,3.2078]
[1746425116604,1.10095,1816.6,1816.4,0.7818]
[1746425116805,1.10095,1816.6,1816.4,1.88282]
[1746425117002,1.6969,1816.5,1816.4,1.88282]
[1746425117304,2.79786,1816.5,1816.4,0.7818]
[1746425117609,1.6969,1816.5,1816.4,0.7818]
[1746425117901,2.79786,1816.5,1816.4,0.7818]
[1746425118102,2.79786,1816.5,1816.3,5.09612]
[1746425118602,1.10102,1816.4,1816.3,3.9951]
[1746425118802,1.10102,1816.4,1816.3,3.2078]
[1746425119399,1.10114,1816.2,1816.1,11.9193132]
[1746425119702,1.1011,1816.3,1816.1,11.9193132]
[1746425119903,1.5921,1816.2,1816.1,4.6937]
[1746425120204,1.5921,1816.2,1816.1,5.7949]
[1746425120905,3.2078,1816.5,1816.3,1.10107]
[1746425121105,1.5921,1816.4,1816.3,1.10107]
[1746425121607,2.69312,1816.4,1816.2,2.77571]
[1746425121906,1.5921,1816.4,1816.3,1.10108]
[1746425122106,1.5921,1816.4,1816.3,2.80948]
[1746425123896,2.69316,1816.4,1816.2,1.1011]
[1746425124099,1.10111,1816.3,1816.2,1.10114]
[1746425124305,2.75771,1816.3,1816.2,2.80954]
[1746425124710,2.75771,1816.3,1816.2,1.7084]
[1746425124908,2.75771,1816.3,1816.1,4.94116]
[1746425125109,1.6473,1816.2,1816.1,4.94116]
[1746425125406,1.6473,1816.2,1816.1,6.53596]
[1746425129711,1.10106,1816.4,1816.2,1.10112]
[1746425130010,2.75026,1816.4,1816.2,2.69152]
[1746425130310,1.10108,1816.3,1816.2,2.69152]
[1746425130903,1.10108,1816.3,1816.2,1.5904]
[1746425131713,1.6492,1816.4,1816.0,3.2078]
[1746425131904,1.6492,1816.4,1816.0,5.92244]
[1746425132100,1.1012,1816.1,1816.0,5.92244]
[1746425132305,1.6492,1816.4,1816.0,5.92244]
[1746425132507,1.1012,1816.1,1816.0,5.92244]
[1746425132708,1.10118,1816.2,1816.0,5.92244]
[1746425133012,1.10118,1816.2,1816.1,1.6134]
[1746425135105,1.10118,1816.2,1816.1,2.7146]
[1746425135302,1.6134,1816.3,1816.2,1.10114]
[1746425135514,1.10108,1816.3,1816.2,1.6077]
[1746425135712,4.7734,1816.5,1816.2,2.70878]
[1746425135911,1.10102,1816.4,1816.2,3.40519843]
[1746425136106,1.10102,1816.4,1816.3,2.70878]
[1746425136305,5.87439,1816.5,1816.4,1.10102]
[1746425136501,2.66659,1816.5,1816.4,2.75642]
[1746425136702,2.66659,1816.5,1816.4,1.6554]
[1746425139412,1.10108,1816.3,1816.2,3.2078]
[1746425139611,1.6895,1816.4,1816.0,3.2078]
[1746425139912,1.10113,1816.3,1816.0,6.02593]
[1746425140109,1.10113,1816.3,1816.1,1.7169]
[1746425140415,1.10113,1816.3,1816.1,2.8181]
[1746425140613,1.10113,1816.3,1816.2,1.7169]
[1746425140809,2.78873,1816.6,1816.4,1.101]
[1746425141009,1.6878,1816.6,1816.5,2.81786]
[1746425141214,1.1009,1816.6,1816.5,1.7169]
[1746425141614,1.1009,1816.6,1816.5,2.41291244]
[1746425141915,1.1009,1816.6,1816.5,1.7169]
[1746425142620,5.99818,1816.7,1816.5,1.7169]
[1746425142916,1.1009,1816.6,1816.5,1.7169]
[1746425143614,1.1009,1816.6,1816.5,2.41324348]
[1746425144716,5.99818,1816.7,1816.5,3.51420348]
[1746425144917,5.99818,1816.7,1816.6,1.6729]
[1746425145517,4.30868,1816.7,1816.6,1.6729]
[1746425146718,4.9312,1816.7,1816.3,7.5456]
[1746425146914,1.101,1816.5,1816.4,1.691]
[1746425147517,1.101,1816.5,1816.4,2.38831698]
[1746425148618,1.101,1816.5,1816.4,0.69731698]
[1746425149017,1.101,1816.5,1816.4,1.5965]
[1746425150217,1.101,1816.5,1816.4,2.29363137]
[1746425150919,1.101,1816.5,1816.4,1.5965]
[1746425152121,1.10107,1816.4,1816.2,4.94209]
[1746425152422,1.10108,1816.3,1816.2,6.58349]
[1746425152616,1.10108,1816.3,1816.2,7.28075425]
[1746425155519,1.10108,1816.3,1816.2,6.17966425]
[1746425156419,1.10108,1816.3,1816.2,2.33866425]
[1746425156718,2.76648,1816.3,1816.2,2.33866425]
[1746425160322,1.10108,1816.3,1816.2,3.43980425]
[1746425160525,1.10108,1816.3,1816.2,3.43979425]
[1746425160824,2.79906,1816.4,1816.2,3.43979425]
[1746425161021,2.79906,1816.4,1816.3,2.31016425]
[1746425162422,2.79906,1816.4,1816.3,0.69726425]
[1746425162624,1.10138,1815.8,1815.7,7.2256132]
[1746425163026,1.10136,1815.9,1815.7,9.9399532]
[1746425163213,1.10136,1815.9,1815.8,2.4501]
[1746425164125,1.10136,1815.9,1815.8,3.55148]
[1746425165433,1.10136,1815.9,1815.8,2.4501]
[1746425166130,1.10136,1815.9,1815.8,3.55148]
[1746425166328,2.67591,1816.0,1815.9,1.10132]
[1746425166629,1.10131,1816.0,1815.9,1.6856]
[1746425167618,4.37471,1816.0,1815.9,1.6856]
[1746425168329,1.10144,1815.7,1815.5,3.841]
[1746425168530,1.5823,1815.9,1815.6,3.2078]
[1746425168730,1.10137,1815.9,1815.8,1.10138]
[1746425168929,1.10137,1815.9,1815.7,1.5813]
[1746425169230,1.10137,1815.9,1815.8,0.8539]
[1746425169631,1.10137,1815.9,1815.8,2.4352]
[1746425170121,2.69757,1815.9,1815.8,1.5813]
[1746425170631,7.55735,1815.9,1815.4,11.00849]
[1746425170929,1.10154,1815.6,1815.5,1.6299]
[1746425171935,2.73224,1815.6,1815.5,1.6299]
[1746425172434,1.10156,1815.5,1815.4,4.8628]
[1746425172654,2.69776,1815.5,1815.4,5.6916]
[1746425172847,2.69776,1815.5,1815.4,3.2078]
[1746425176457,2.69776,1815.5,1815.3,1.6493]
[1746425176458,1.10163,1815.4,1815.3,1.6493]
[1746425177858,1.10158,1815.5,1815.4,1.10163]
[1746425178158,1.10158,1815.5,1815.3,2.75094]
[1746425178557,1.10158,1815.5,1815.4,1.5735]
[1746425178852,1.10158,1815.5,1815.4,2.67513]
[1746425179260,1.10158,1815.5,1815.4,1.5735]
[1746425179955,1.10158,1815.5,1815.4,2.67513]
[1746425181062,1.10155,1815.6,1815.4,2.67513]
[1746425181262,1.10155,1815.6,1815.5,2.4529]
[1746425181565,1.10149,1815.7,1815.6,1.1015]
[1746425181756,1.10149,1815.7,1815.6,2.7211]
[1746425183260,1.10144,1815.7,1815.6,2.7211]
[1746425183962,1.10141,1815.8,1815.7,1.10144]
[1746425184262,1.10141,1815.8,1815.7,1.6884]
[1746425184856,9.0318,1816.7,1815.8,2.75346]
[1746425185062,9.0318,1816.7,1816.4,1.10102]
[1746425185063,1.10094,1816.6,1816.4,1.10102]
[1746425185265,2.69004,1816.6,1816.4,1.10102]
[1746425185469,2.69004,1816.6,1816.5,1.6701]
[1746425186061,1.10101,1816.5,1816.3,2.70638]
[1746425186251,2.69011,1816.5,1816.4,1.6701]
[1746425186657,1.10102,1816.4,1816.2,3.84]
[1746425186858,3.54082,1816.4,1816.2,4.94111]
[1746425187060,3.54082,1816.4,1816.2,6.61121]
[1746425187458,1.5891,1816.3,1816.2,6.61121]
[1746425188166,0.8507,1816.4,1816.3,1.10108]
[1746425188360,0.8507,1816.4,1816.3,2.78978]
[1746425188775,1.6777,1816.6,1816.3,4.8965]
[1746425189066,1.6777,1816.6,1816.4,2.5375]
[1746425189271,1.10096,1816.5,1816.4,2.5375]
[1746425189658,1.10096,1816.5,1816.4,1.6887]
[1746425190461,2.77864,1816.6,1816.4,2.78972]
[1746425190856,2.79098,1816.7,1816.5,1.10096]
[1746425191062,4.46868,1816.7,1816.5,2.78966]
[1746425191667,4.46867,1816.7,1816.5,2.78966]
[1746425191869,4.46867,1816.7,1816.6,1.6062]
[1746425192468,3.3678,1816.7,1816.4,1.10099]
[1746425192668,1.6892,1816.6,1816.4,1.10099]
[1746425192870,1.10096,1816.5,1816.4,1.10099]
[1746425193372,2.79015,1816.6,1816.4,1.10099]
[1746425194470,1.10096,1816.5,1816.4,1.10099]
[1746425194673,2.69916,1816.5,1816.3,2.70724]
[1746425194872,2.69916,1816.5,1816.4,1.10102]
[1746425195665,2.69916,1816.5,1816.3,1.6062]
[1746425195666,2.69916,1816.5,1816.3,2.70725]
[1746425196174,2.69916,1816.5,1816.4,1.10102]
[1746425197467,1.10102,1816.4,1816.3,2.70725]
[1746425197665,1.5982,1816.5,1816.3,2.70725]
[1746425197866,2.69919,1816.5,1816.4,1.10102]
[1746425198366,2.69919,1816.5,1816.3,1.6062]
[1746425198573,1.5812,1816.4,1816.3,2.70725]
[1746425199174,2.68222,1816.4,1816.3,2.70725]
[1746425199673,1.5812,1816.4,1816.3,2.70725]
[1746425199873,2.68222,1816.4,1816.3,1.6062]
[1746425200068,2.68222,1816.4,1816.3,2.70728]
[1746425200261,1.5812,1816.4,1816.3,2.70728]
[1746425200467,1.10099,1816.5,1816.4,1.10102]
[1746425200666,1.10102,1816.4,1816.3,2.70724]
[1746425201574,1.101,1816.5,1816.3,2.70724]
[1746425201974,1.101,1816.5,1816.4,1.10102]
[1746425202678,1.10102,1816.4,1816.3,1.6062]
[1746425203175,1.10102,1816.4,1816.3,1.10108]
[1746425203370,1.10108,1816.3,1816.2,7.52511]
[1746425203578,2.70928,1816.3,1816.2,6.66931]
[1746425204879,1.6082,1816.3,1816.2,6.66931]
[1746425205279,4.34118,1816.3,1816.2,6.66931]
[1746425205779,1.10094,1816.6,1816.2,8.32105]
[1746425205981,3.54206,1816.5,1816.4,1.10102]
[1746425206379,3.54206,1816.5,1816.3,2.82923]
[1746425206677,3.54206,1816.5,1816.4,1.10102]
[1746425207883,3.54206,1816.5,1816.3,2.82922]
[1746425208073,2.79542,1816.4,1816.3,2.82922]
[1746425208679,2.79542,1816.4,1816.3,1.7282]
[1746425209280,1.10108,1816.3,1816.2,3.84]
[1746425209482,1.10114,1816.2,1816.1,4.9055]
[1746425209981,1.10114,1816.2,1816.1,6.0067]
[1746425213477,2.83772,1816.3,1816.1,4.9055]
[1746425213670,2.83772,1816.3,1816.2,1.10114]
[1746425213882,2.83772,1816.3,1816.2,1.6548]
[1746425214778,4.017,1816.5,1816.2,1.6548]
[1746425214982,1.10103,1816.4,1816.3,1.10105]
[1746425215183,1.10103,1816.4,1816.2,2.75589]
[1746425215483,1.10108,1816.3,1816.2,2.75589]
[1746425215777,8.45277,1816.5,1816.1,4.30895]
[1746425215978,1.10108,1816.3,1816.1,4.30896]
[1746425216378,1.10108,1816.3,1816.2,1.10114]
[1746425219685,1.10108,1816.3,1816.1,1.10114]
[1746425219881,1.10118,1816.2,1816.1,1.1012]
[1746425220282,1.1012,1816.1,1816.0,6.59222]
[1746425220483,1.10117,1816.2,1816.1,1.1012]
[1746425221089,1.10117,1816.2,1816.0,6.59222]
[1746425221388,1.1012,1816.1,1816.0,6.59224]
[1746425221685,1.1012,1816.1,1816.0,0.8575]
[1746425222688,1.10126,1816.0,1815.9,3.2078]
[1746425223383,2.80956,1816.0,1815.9,3.2078]
[1746425224484,1.10141,1815.8,1815.6,1.92487]
[1746425224686,1.10141,1815.8,1815.7,1.10144]
[1746425225490,1.10141,1815.8,1815.6,1.92487]
[1746425225883,1.7083,1815.9,1815.6,1.92487]
[1746425226084,1.10138,1815.8,1815.6,1.92487]
[1746425226288,1.10144,1815.7,1815.6,0.8234]
[1746425226689,1.10144,1815.7,1815.6,1.9249]
[1746425227086,1.90453,1815.8,1815.6,1.9249]
[1746425227291,1.90453,1815.8,1815.6,1.92486]
[1746425227493,1.10144,1815.7,1815.6,0.8234]
[1746425227792,1.90452,1815.8,1815.6,0.8234]
[1746425227985,1.90452,1815.8,1815.6,1.92486]
[1746425228185,1.90452,1815.8,1815.6,1.92489]
[1746425228186,1.10144,1815.7,1815.6,1.92489]
[1746425228492,1.10144,1815.7,1815.6,1.10149]
[1746425228889,1.6828,1815.7,1815.5,5.12654]
[1746425229086,2.78429,1815.7,1815.5,5.12654]
[1746425229491,1.1015,1815.6,1815.5,3.2078]
[1746425229693,2.7843,1815.6,1815.5,3.2078]
[1746425230288,1.88896,1815.7,1815.5,4.30936]
[1746425230592,1.1015,1815.6,1815.5,4.30936]
[1746425230790,1.1015,1815.6,1815.5,3.2078]
[1746425230991,2.8003,1815.6,1815.5,3.2078]
[1746425231995,1.10156,1815.5,1815.4,0.8077]
[1746425232196,3.61896,1815.5,1815.4,0.8077]
[1746425232397,3.61896,1815.5,1815.3,5.94607]
[1746425232588,0.7875,1815.7,1815.3,4.8444]
[1746425232784,1.10151,1815.6,1815.5,1.10155]
[1746425233095,3.3049,1815.7,1815.6,1.6366]
[1746425233896,4.4064,1815.7,1815.6,1.6366]
[1746425236798,4.4064,1815.7,1815.6,2.7381]
[1746425237094,4.4064,1815.7,1815.6,1.6366]
[1746425238197,1.10154,1815.6,1815.4,1.10158]
[1746425238499,1.10156,1815.5,1815.4,1.10163]
[1746425238701,2.77954,1815.6,1815.4,2.74083]
[1746425239201,2.77954,1815.6,1815.5,1.6392]
[1746425239402,2.77954,1815.6,1815.5,2.74076]
[1746425241398,1.10149,1815.7,1815.5,2.74076]
[1746425241601,1.10149,1815.7,1815.6,1.5737]
[1746425242003,1.10149,1815.7,1815.6,2.4109]
[1746425246304,1.10149,1815.7,1815.6,3.5124]
[1746425246603,1.10163,1815.4,1815.3,10.20747]
[1746425246801,1.10163,1815.4,1815.3,4.0465]
[1746425247104,1.10158,1815.5,1815.4,1.10161]
[1746425247305,1.10163,1815.4,1815.3,0.8387]
[1746425247498,4.30943,1815.4,1815.3,0.8387]
[1746425247900,5.97263,1815.4,1815.3,2.4723]
[1746425248098,5.97263,1815.4,1815.3,1.6336]
[1746425248706,1.10181,1815.1,1815.0,0.8223]
[1746425248906,1.10181,1815.1,1815.0,2.4559]
[1746425249101,1.10187,1815.0,1814.9,10.4334132]
[1746425249608,1.10187,1815.0,1814.9,3.2078]
[1746425249807,1.10193,1814.9,1814.8,7.5592]
[1746425250005,1.10193,1814.9,1814.8,1.6612]
[1746425250705,0.8216,1814.9,1814.6,4.30991]
[1746425250906,1.10204,1814.8,1814.7,1.6612]
[1746425253410,2.78084,1814.8,1814.7,1.6612]
[1746425253709,1.10204,1814.8,1814.7,1.6612]
[1746425253911,0.8216,1814.9,1814.7,2.76325]
[1746425254313,1.10199,1814.8,1814.7,1.6612]
[1746425256012,1.92357,1814.9,1814.7,2.76323]
[1746425256416,1.92357,1814.9,1814.8,1.569]
[1746425257314,2.78073,1815.0,1814.8,2.67099]
[1746425257806,2.78073,1815.0,1814.9,1.569]
[1746425261012,1.10204,1814.8,1814.6,5.15567]
[1746425261211,3.61647,1814.9,1814.7,2.81675]
[1746425261415,3.61647,1814.9,1814.8,2.81669]
[1746425261713,1.10197,1814.9,1814.8,2.81669]
[1746425262317,1.10191,1815.0,1814.8,2.81669]
[1746425262914,2.5102,1815.1,1814.8,2.81669]
[1746425263112,1.10193,1814.9,1814.8,1.10199]
[1746425263418,1.10199,1814.8,1814.7,1.10205]
[1746425264212,1.10199,1814.8,1814.6,9.9516]
[1746425264410,1.10199,1814.8,1814.6,11.05366]
[1746425264611,1.10205,1814.7,1814.6,11.05366]
[1746425264914,1.10205,1814.7,1814.6,9.9516]
[1746425265113,1.10205,1814.7,1814.6,11.05371]
[1746425265314,1.10205,1814.7,1814.6,9.9516]
[1746425266509,1.10205,1814.7,1814.6,9.1058]
[1746425266811,1.10239,1814.2,1814.0,5.898]
[1746425267018,1.10231,1814.3,1814.0,7.5173]
[1746425267610,1.10231,1814.3,1814.1,1.10241]
[1746425267806,4.9022,1814.4,1814.0,7.5173]
[1746425268011,3.825,1814.6,1814.0,7.5173]
[1746425268012,4.31018,1814.2,1814.0,8.61973]
[1746425268517,3.2078,1814.2,1814.0,7.5173]
[1746425268815,1.10241,1814.1,1814.0,5.898]
[1746425269019,1.10254,1813.9,1813.8,7.2256132]
[1746425269215,3.2078,1814.0,1813.8,7.2256132]
[1746425269422,1.10254,1813.9,1813.8,7.2256132]
[1746425270214,1.10254,1813.9,1813.8,12.0602132]
[1746425270417,1.10254,1813.9,1813.8,10.9576132]
[1746425270608,5.88921,1814.0,1813.8,12.0602132]
[1746425272523,4.7867,1814.0,1813.9,1.10254]
[1746425272915,1.88605,1814.1,1813.9,1.10254]
[1746425273321,1.88605,1814.1,1813.9,4.83454]
[1746425273526,1.10245,1814.1,1813.9,4.83449]
[1746425273823,1.10245,1814.1,1813.9,3.732]
[1746425274127,1.10245,1814.1,1813.9,4.83448]
[1746425274423,5.762,1814.2,1813.9,3.732]
[1746425274624,3.2078,1814.2,1814.1,1.10241]
[1746425274827,4.31018,1814.2,1814.0,2.76683]
[1746425275019,4.31018,1814.2,1814.1,1.10241]
[1746425275525,1.10241,1814.1,1814.0,4.53]
[1746425275725,2.80201,1814.1,1814.0,3.732]
[1746425276225,2.80201,1814.1,1813.8,0.8664]
[1746425276226,1.10239,1814.2,1813.8,0.8664]
[1746425276528,1.10239,1814.2,1814.1,1.10241]
[1746425276717,4.92834,1814.3,1814.1,1.10241]
[1746425276916,1.10234,1814.3,1814.2,1.10235]
[1746425277114,3.2078,1814.4,1814.3,1.10229]
[1746425277323,1.10219,1814.5,1814.4,1.10223]
[1746425277823,1.95359,1814.7,1814.5,1.10217]
[1746425278016,1.95359,1814.7,1814.5,1.10212]
[1746425278420,3.66859,1814.7,1814.5,1.10212]
[1746425278826,2.5665,1814.7,1814.2,2.75589]
[1746425279029,3.66859,1814.7,1814.5,1.10214]
[1746425279729,3.66859,1814.7,1814.5,1.10212]
[1746425280027,1.10211,1814.6,1814.5,1.10213]
[1746425280225,4.30991,1814.6,1814.4,1.1022]
[1746425280425,5.94351,1814.6,1814.4,1.1022]
[1746425282128,1.10217,1814.5,1814.2,1.7063]
[1746425282335,1.10226,1814.4,1814.2,2.80862]
[1746425282534,1.10226,1814.4,1814.3,1.7063]
[1746425282729,1.10232,1814.3,1814.1,9.82389]
[1746425282929,1.91242,1814.3,1814.2,1.10235]
[1746425283128,1.91242,1814.3,1814.2,2.83355]
[1746425283330,0.8101,1814.3,1814.2,2.83355]
[1746425283633,5.7433,1814.6,1814.3,1.10226]
[1746425283836,1.10225,1814.4,1814.3,1.7312]
[1746425284335,1.10234,1814.3,1814.1,2.79011]
[1746425284528,1.10234,1814.3,1814.1,1.6877]
[1746425284529,1.10235,1814.2,1814.1,1.6877]
[1746425284835,1.10235,1814.2,1814.1,2.79011]
[1746425285034,2.82774,1814.3,1814.1,3.68881]
[1746425285436,1.7254,1814.3,1814.1,3.68881]
[1746425285734,1.10235,1814.2,1814.1,3.68881]
[1746425285936,1.93245,1814.2,1814.1,2.5864]
[1746425286136,5.93205,1814.2,1814.1,1.7312]
[1746425286337,5.93205,1814.2,1814.1,2.83361]
[1746425286840,5.93205,1814.2,1814.1,1.7312]
[1746425287038,1.10241,1814.1,1813.9,9.43548]
[1746425287344,3.2078,1814.0,1813.9,3.53748]
[1746425287838,4.31028,1814.0,1813.8,1.90736]
[1746425288136,5.90018,1814.0,1813.9,3.732]
[1746425288930,4.7977,1814.0,1813.9,4.83454]
[1746425289137,5.9321,1814.2,1814.0,1.10246]
[1746425289337,7.53778,1814.2,1814.0,2.68298]
[1746425289531,7.53778,1814.2,1814.0,3.48408]
[1746425289730,7.53778,1814.2,1814.1,1.5805]
[1746425290639,7.53778,1814.2,1814.0,1.10248]
[1746425290840,2.70811,1814.1,1814.0,1.10248]
[1746425291139,5.93209,1814.2,1814.0,1.10248]
[1746425291335,5.10199,1814.2,1814.1,1.5805]
[1746425291536,4.31019,1814.2,1814.1,1.5805]
[1746425292237,3.2078,1814.2,1814.1,2.68291]
[1746425292741,5.97787,1814.4,1814.2,1.10235]
[1746425293034,3.2078,1814.4,1814.3,1.10229]
[1746425293243,3.2078,1814.4,1814.3,1.94369]
[1746425293437,3.2078,1814.4,1814.3,2.73149]
[1746425293837,4.31005,1814.4,1814.2,2.69191]
[1746425294036,1.10229,1814.3,1814.2,1.5896]
[1746425294438,3.2078,1814.6,1814.2,4.7974]
[1746425294743,1.10223,1814.4,1814.3,2.3774]
[1746425295040,2.76822,1814.5,1814.3,2.69188]
[1746425295442,1.10223,1814.4,1814.3,1.5896]
[1746425295740,2.76823,1814.4,1814.3,2.69189]
[1746425295939,4.30995,1814.6,1814.4,1.1022]
[1746425296140,4.30995,1814.6,1814.5,1.6685]
[1746425296340,3.2078,1814.6,1814.5,2.77067]
[1746425296540,3.2078,1814.6,1814.5,3.56797]
[1746425296934,1.10203,1814.8,1814.6,1.10209]
[1746425297137,7.64218,1814.9,1814.7,1.10201]
[1746425297539,3.2078,1815.1,1814.6,8.6953]
[1746425297741,0.7992,1815.2,1815.1,1.10181]
[1746425297946,1.90097,1815.2,1815.0,1.10183]
[1746425298245,0.7992,1815.2,1815.1,2.69971]
[1746425298643,6.00812,1815.3,1815.2,1.10175]
[1746425298644,4.9064,1815.3,1815.2,1.10175]
[1746425298845,6.00809,1815.3,1815.2,1.5979]
[1746425300143,4.9064,1815.3,1815.2,2.69965]
[1746425300741,4.9064,1815.3,1815.2,1.5979]
[1746425300940,6.00809,1815.3,1815.2,1.5979]
[1746425301945,6.00809,1815.3,1814.9,4.6163]
[1746425301946,1.10179,1815.2,1815.0,1.10185]
[1746425302146,2.80639,1815.2,1815.1,1.642]
[1746425302345,1.10186,1815.1,1814.9,4.9209]
[1746425302541,1.7046,1815.1,1814.9,6.5629]
[1746425302739,6.85375,1815.1,1814.9,6.56293]
[1746425302939,1.10187,1815.0,1814.9,5.461]
[1746425303144,2.80647,1815.0,1814.9,5.461]
[1746425304647,5.14915,1815.1,1814.9,6.56291]
[1746425304845,5.14915,1815.1,1815.0,1.6423]
[1746425305752,5.14915,1815.1,1815.0,2.74417]
[1746425307048,5.14915,1815.1,1815.0,1.6423]
[1746425307551,5.14915,1815.1,1815.0,2.74417]
[1746425307845,1.10193,1814.9,1814.8,0.8512]
[1746425308050,1.10193,1814.9,1814.6,10.5216]
[1746425308051,1.10199,1814.8,1814.7,1.10205]
[1746425308346,4.30977,1814.9,1814.7,1.10205]
[1746425308547,1.7342,1814.9,1814.8,1.10199]
[1746425308750,5.14914,1815.1,1814.9,1.10193]
[1746425308944,5.14914,1815.1,1815.0,1.5994]
[1746425309346,6.88334,1815.1,1815.0,1.5994]
[1746425311554,1.10204,1814.8,1814.6,8.93349]
[1746425311754,1.10204,1814.8,1814.6,10.53826]
[1746425311954,2.81395,1814.7,1814.6,8.6306]
[1746425312254,3.3475,1814.7,1814.6,5.91471]
[1746425312857,4.44955,1814.7,1814.6,5.91471]
[1746425313151,3.3475,1814.7,1814.6,5.91471]
[1746425313754,4.44955,1814.7,1814.6,5.91471]
[1746425314050,4.44955,1814.7,1814.6,3.2078]
[1746425314249,1.10217,1814.5,1814.4,1.604]
[1746425314548,1.10217,1814.5,1814.4,2.70623]
[1746425315356,1.10217,1814.5,1814.4,1.604]
[1746425316858,1.10217,1814.5,1814.4,2.70621]
[1746425317050,1.10217,1814.5,1814.4,1.604]
[1746425317353,2.69246,1814.6,1814.4,2.70623]
[1746425317854,1.5903,1814.6,1814.5,2.69647]
[1746425318058,1.6829,1815.0,1814.5,1.5943]
[1746425318258,3.3826,1815.0,1814.7,1.10202]
[1746425318657,1.10199,1814.8,1814.7,1.10202]
[1746425319052,1.10199,1814.8,1814.6,1.10207]
[1746425319357,1.10199,1814.8,1814.7,2.4167]
[1746425319953,1.10205,1814.7,1814.5,1.10213]
[1746425320154,1.6903,1814.8,1814.5,2.68633]
[1746425320355,1.10211,1814.6,1814.5,1.5842]
[1746425320756,4.49101,1814.6,1814.5,2.68637]
[1746425321050,1.10228,1814.4,1814.2,1.10233]
[1746425321257,1.10228,1814.4,1814.2,2.68653]
[1746425321457,1.10228,1814.4,1814.3,1.10229]
[1746425321762,1.10223,1814.4,1814.3,2.68649]
[1746425322358,1.6903,1814.4,1814.3,2.68649]
[1746425322556,2.79253,1814.4,1814.3,2.68649]
[1746425323362,2.79253,1814.4,1814.3,1.5842]
[1746425324258,2.79253,1814.4,1814.3,2.68649]
[1746425324456,1.6903,1814.4,1814.3,2.68649]
[1746425324661,4.30999,1814.5,1814.3,2.68649]
[1746425324852,4.30999,1814.5,1814.4,1.7093]
[1746425325049,6.02019,1814.5,1814.4,1.7093]
[1746425326248,4.918,1814.5,1814.2,2.74792]
[1746425326449,1.10229,1814.3,1814.2,1.6456]
[1746425326761,1.10241,1814.1,1813.9,14.02029]
[1746425326962,3.3197,1814.2,1814.0,1.10245]
[1746425327154,4.42208,1814.2,1814.0,2.74805]
[1746425327762,4.42208,1814.2,1814.1,1.10241]
[1746425328158,4.42208,1814.2,1814.0,1.6456]
[1746425328560,1.10241,1814.1,1814.0,1.6456]
[1746425328859,7.58159,1814.1,1813.7,7.2256132]
[1746425329049,4.31037,1813.9,1813.7,2.79053]
[1746425329252,4.31037,1813.9,1813.7,6.52253]
[1746425329650,4.31037,1813.9,1813.8,1.6879]
[1746425330062,3.2078,1813.9,1813.8,2.7905]
[1746425330254,4.31034,1813.9,1813.8,1.6879]
[1746425330451,5.92804,1813.9,1813.8,1.6879]
[1746425330760,5.92804,1813.9,1813.8,2.7905]
[1746425331161,5.92804,1813.9,1813.8,6.5225]
[1746425331562,4.8255,1813.9,1813.8,6.5225]
[1746425331750,1.10252,1814.0,1813.8,6.5225]
[1746425331949,1.10252,1814.0,1813.9,1.6104]
[1746425332154,1.10252,1814.0,1813.9,5.3424]
[1746425332355,2.83742,1814.0,1813.9,5.3424]
[1746425332555,2.83742,1814.0,1813.9,3.732]
[1746425333059,2.83742,1814.0,1813.9,3.73887735]
[1746425333557,4.31027,1814.1,1813.9,4.84141735]
[1746425333758,3.4398,1814.2,1814.0,2.71285]
[1746425333955,4.5422,1814.2,1814.0,2.78745]
[1746425334862,4.5422,1814.2,1814.1,1.10241]
[1746425335256,4.5422,1814.2,1814.0,2.78743]
[1746425335963,1.10241,1814.1,1814.0,2.78743]
[1746425336263,2.81711,1814.1,1814.0,2.78743]
[1746425336967,1.7147,1814.1,1814.0,2.78743]
[1746425337267,2.81711,1814.1,1814.0,2.78743]
[1746425337567,1.7147,1814.1,1814.0,2.78743]
[1746425337968,6.02491,1814.1,1814.0,1.685]
[1746425338155,4.9225,1814.1,1813.9,0.00687735]
[1746425338354,2.79978,1814.0,1813.9,0.00687735]
[1746425338969,2.79978,1814.0,1813.9,1.10941735]
[1746425339166,2.79978,1814.0,1813.9,3.73887735]
[1746425341168,2.79978,1814.0,1813.9,4.84141735]
[1746425341467,1.6973,1814.0,1813.9,4.84141735]
[1746425341866,3.2078,1814.1,1814.0,1.10248]
[1746425342066,5.93854,1814.1,1813.9,4.84136735]
[1746425342269,5.93854,1814.1,1813.9,1.10936735]
[1746425342668,3.2078,1814.1,1814.0,1.10248]
[1746425342971,0.8419,1814.2,1814.1,1.10241]
[1746425343266,3.2078,1814.3,1814.2,1.10235]
[1746425343472,3.3023,1814.5,1814.4,1.10223]
[1746425344071,4.40447,1814.5,1814.4,1.10223]
[1746425344271,3.2078,1814.6,1814.5,1.10217]
[1746425344665,4.30991,1814.6,1814.4,1.10221]
[1746425344873,6.77611,1814.6,1814.4,1.10221]
[1746425346471,1.10219,1814.5,1814.3,1.10226]
[1746425346668,1.10226,1814.4,1814.2,1.10231]
[1746425346866,3.56462,1814.5,1814.3,1.10229]
[1746425347368,3.56462,1814.5,1814.1,7.8398]
[1746425347369,3.2078,1814.6,1814.1,7.8398]